[Event "55th Rubinstein Memorial-C 2019"]
[Site "Polanica-Zdroj"]
[Date "2019.08.22"]
[Round "6.27"]
[White "Ciechonski, Piotr"]
[Black "Ursnik, Patryk"]
[Result "0-1"]
[ECO "B23"]
[WhiteElo "1767"]
[BlackElo "1497"]
[Annotator "NA"]
[PlyCount "60"]
[EventDate "2019.08.17"]
[EventType "swiss"]
[EventCountry "POL"]
[SourceTitle "playchess.com"]
[Source "ChessBase"]
[SourceQuality "1"]
[TimeControl "40/5400+30:1800+30"]

1. e4 {[%emt 0:00:00]} c5 {[%emt 0:07:20]} 2. Nc3 {[%emt 0:00:10]} Nc6 {[%emt 0:01:00]} 3. f4 {[%emt 0:00:20]} g6 {[%emt 0:00:58]} 4. Nf3 {[%emt 0:00:06]} d6 {[%emt 0:00:44]} 5. Bc4 {[%emt 0:00:11]} Bg7 {[%emt 0:00:21]} 6. O-O {[%emt 0:00:24]} Bg4 {[%emt 0:00:09]} 7. Bxf7+ {[%emt 0:00:29]} Kd7 {[%emt 0:02:57]} 8. Bb3 {[%emt 0:01:54]} Nf6 9. d3 {[%emt 0:00:25]} a6 {[%emt 0:03:47]} 10. a4 {[%emt 0:00:50]} Qc7 {[%emt 0:00:29]} 11. h3 {[%emt 0:00:54]} Bxf3 {[%emt 0:00:29]} 12. Qxf3 {[%emt 0:00:13]} Raf8 {[%emt 0:00:36]} 13. Be3 {[%emt 0:02:17]} Kc8 {[%emt 0:00:59]} 14. Qf2 {[%emt 0:04:18]} e5 {[%emt 0:07:20]} 15. Be6+ {[%emt 0:01:00]} Kb8 {[%emt 0:02:15]} 16. f5 {[%emt 0:01:51]} Nd4 {[%emt 0:01:16]} 17. Bxd4 {[%emt 0:00:59]} exd4 {[%emt 0:00:49]} 18. Nd5 {[%emt 0:00:46]} Nxd5 {[%emt 0:00:11]} 19. Bxd5 {[%emt 0:00:42]} Be5 {[%emt 0:01:27]} 20. Qd2 {[%emt 0:03:52]} Qg7 {[%emt 0:06:17]} 21. Rf3 {[%emt 0:03:55]} g5 {[%emt 0:00:33]} 22. Raf1 {[%emt 0:04:31]} Rf6 {[%emt 0:00:08]} 23. g4 {[%emt 0:06:13]} h5 {[%emt 0:02:36]} 24. Qg2 {[%emt 0:02:32]} hxg4 {[%emt 0:03:55]} 25. Qxg4 {[%emt 0:00:25]} Rh4 {[%emt 0:00:08]} 26. Qg2 {[%emt 0:00:06]} g4 {[%emt 0:00:40]} 27. Kf2 {[%emt 0:01:18]} Qh6 {[%emt 0:01:01]} 28. Rg3 {[%emt 0:03:50]} Bxg3+ {[%emt 0:01:03]} 29. Qxg3 {[%emt 0:00:16]} Rxh3 {[%emt 0:00:29]} 30. Qxg4 {[%emt 0:01:07]} Qd2+ {[%emt 0:00:16] Qg3 Qh6 Qg2} 0-1

[Event "55th Rubinstein Memorial-C 2019"]
[Site "Polanica-Zdroj"]
[Date "2019.08.22"]
[Round "6.28"]
[White "Wilgosz, Tomasz"]
[Black "Milczarek, Robert"]
[Result "1-0"]
[ECO "B03"]
[WhiteElo "1513"]
[BlackElo "1698"]
[Annotator "NA"]
[PlyCount "97"]
[EventDate "2019.08.17"]
[EventType "swiss"]
[EventCountry "POL"]
[SourceTitle "playchess.com"]
[Source "ChessBase"]
[SourceQuality "1"]
[TimeControl "40/5400+30:1800+30"]

1. e4 {[%emt 0:00:00]} Nf6 {[%emt 0:00:00]} 2. e5 {[%emt 0:00:07]} Nd5 {[%emt 0:00:00]} 3. d4 {[%emt 0:00:22]} d6 {[%emt 0:00:00]} 4. f4 {[%emt 0:01:47]} dxe5 {[%emt 0:03:05]} 5. dxe5 {[%emt 0:02:38]} c6 {[%emt 0:03:51]} 6. c4 {[%emt 0:05:28]} Nb6 {[%emt 0:01:53]} 7. Qxd8+ {[%emt 0:01:14]} Kxd8 {[%emt 0:00:05]} 8. Be3 {[%emt 0:01:27]} Be6 {[%emt 0:03:46]} 9. b3 {[%emt 0:01:41]} g6 {[%emt 0:00:37]} 10. Nf3 {[%emt 0:01:07]} h6 {[%emt 0:02:29]} 11. Nc3 {[%emt 0:00:51]} Bg7 {[%emt 0:01:03]} 12. O-O-O+ {[%emt 0:01:52]} Ke8 {[%emt 0:00:47]} 13. h3 {[%emt 0:03:26]} Na6 {[%emt 0:06:38]} 14. Bxb6 {[%emt 0:03:08]} axb6 {[%emt 0:00:30]} 15. Kb2 {[%emt 0:12:40]} Nc5 {[%emt 0:06:30]} 16. Nd4 {[%emt 0:05:28]} f6 {[%emt 0:03:20]} 17. b4 {[%emt 0:01:21]} fxe5 {[%emt 0:02:44]} 18. fxe5 {[%emt 0:01:11]} Na4+ {[%emt 0:21:04]} 19. Nxa4 {[%emt 0:00:57]} Bxe5 {[%emt 0:00:05]} 20. Kb3 {[%emt 0:01:11]} Rd8 {[%emt 0:04:57]} 21. Re1 {[%emt 0:06:11]} Rxd4 {[%emt 0:07:15]} 22. Rxe5 {[%emt 0:00:55]} Kf7 {[%emt 0:00:09]} 23. Nxb6 {[%emt 0:02:53]} Rd1 {[%emt 0:01:30]} 24. g4 {[%emt 0:01:51]} Rhd8 {[%emt 0:01:05]} 25. Re2 {[%emt 0:02:19]} Rb1+ {[%emt 0:10:09]} 26. Rb2 {[%emt 0:03:53]} Re1 {[%emt 0:01:36]} 27. Rf2+ {[%emt 0:08:23]} Ke8 {[%emt 0:00:39]} 28. Re2 {[%emt 0:00:46]} Rd3+ {[%emt 0:02:39]} 29. Kc2 {[%emt 0:01:51]} Red1 {[%emt 0:00:59]} 30. Bg2 {[%emt 0:00:55]} Rxh1 {[%emt 0:04:43]} 31. Kxd3 {[%emt 0:00:07]} Rg1 {[%emt 0:02:03]} 32. Rxe6 {[%emt 0:02:29]} Rxg2 {[%emt 0:00:15]} 33. a4 {[%emt 0:00:27]} Rg3+ {[%emt 0:01:03]} 34. Re3 {[%emt 0:00:09]} Rg1 35. Kd4 h5 {[%emt 0:03:22]} 36. gxh5 {[%emt 0:01:02]} gxh5 {[%emt 0:00:31]} 37. Re5 {[%emt 0:00:51]} Rd1+ {[%emt 0:01:50]} 38. Kc5 {[%emt 0:00:25]} h4 {[%emt 0:01:46]} 39. Re4 {[%emt 0:02:03]} e5 {[%emt 0:02:34]} 40. Rxe5+ {[%emt 0:00:41]} Kd8 {[%emt 0:00:31]} 41. Re4 {[%emt 0:30:30]} Rf1 {[%emt 0:30:36]} 42. Rxh4 {[%emt 0:00:36]} Rf5+ {[%emt 0:00:24]} 43. Kd4 {[%emt 0:00:35]} Kc7 {[%emt 0:00:46]} 44. a5 {[%emt 0:00:12]} Rf7 {[%emt 0:00:33]} 45. Rg4 {[%emt 0:01:39]} Rh7 {[%emt 0:00:16]} 46. h4 {[%emt 0:00:15]} Kb8 {[%emt 0:00:54]} 47. Ke5 {[%emt 0:00:38]} Kc7 {[%emt 0:00:55]} 48. Kf6 {[%emt 0:00:43]} Rh5 {[%emt 0:00:47]} 49. Kg6 1-0

[Event "55th Rubinstein Memorial-C 2019"]
[Site "Polanica-Zdroj"]
[Date "2019.08.22"]
[Round "6.29"]
[White "Jakubiak, Karol"]
[Black "Brzozowski, Pawel"]
[Result "0-1"]
[ECO "C00"]
[WhiteElo "1665"]
[BlackElo "1496"]
[Annotator "NA"]
[PlyCount "98"]
[EventDate "2019.08.17"]
[EventType "swiss"]
[EventCountry "POL"]
[SourceTitle "playchess.com"]
[Source "ChessBase"]
[SourceQuality "1"]
[TimeControl "40/5400+30:1800+30"]

1. e4 {[%emt 0:00:00]} e6 {[%emt 0:00:00]} 2. Nf3 {[%emt 0:01:51]} d5 {[%emt 0:00:12]} 3. exd5 {[%emt 0:00:06]} exd5 {[%emt 0:00:05]} 4. d4 {[%emt 0:00:04]} Bd6 {[%emt 0:07:56]} 5. Nc3 {[%emt 0:04:43]} c6 {[%emt 0:00:47]} 6. Be3 {[%emt 0:04:37]} Bf5 {[%emt 0:04:58]} 7. Bd3 {[%emt 0:02:32]} Bxd3 {[%emt 0:01:16]} 8. Qxd3 {[%emt 0:00:06]} Nf6 {[%emt 0:00:35]} 9. O-O-O {[%emt 0:04:52]} Nbd7 {[%emt 0:04:47]} 10. Bg5 {[%emt 0:02:29]} O-O {[%emt 0:04:46]} 11. Qf5 Qc7 {[%emt 0:02:40]} 12. h4 {[%emt 0:14:19]} h6 {[%emt 0:11:30]} 13. Kb1 {[%emt 0:02:21]} Nh7 {[%emt 0:05:57]} 14. Be3 {[%emt 0:01:04]} Ndf6 {[%emt 0:02:16]} 15. Rdg1 {[%emt 0:17:10]} Rfe8 {[%emt 0:13:44]} 16. Nd2 {[%emt 0:20:26]} g6 {[%emt 0:13:40]} 17. Qd3 {[%emt 0:03:12]} Ng4 {[%emt 0:06:57]} 18. Nd1 {[%emt 0:10:20]} Nhf6 {[%emt 0:07:59]} 19. f3 {[%emt 0:04:02]} Nxe3 {[%emt 0:01:04]} 20. Nxe3 {[%emt 0:00:09]} Bf4 {[%emt 0:02:18]} 21. Ng4 {[%emt 0:01:13]} Nxg4 {[%emt 0:01:04]} 22. fxg4 {[%emt 0:00:05]} Re3 {[%emt 0:00:18]} 23. Qf1 {[%emt 0:00:39]} Bh2 {[%emt 0:01:13]} 24. Rxh2 {[%emt 0:02:24]} Qxh2 {[%emt 0:00:09]} 25. Nf3 {[%emt 0:00:03]} Qf4 {[%emt 0:01:43]} 26. g5 {[%emt 0:02:02]} hxg5 {[%emt 0:01:30]} 27. Nxg5 {[%emt 0:00:07]} Qxf1+ {[%emt 0:00:22]} 28. Rxf1 {[%emt 0:00:18]} Rae8 {[%emt 0:00:11]} 29. Nf3 {[%emt 0:00:26]} f6 {[%emt 0:00:45]} 30. Kc1 {[%emt 0:00:25]} Re2 {[%emt 0:00:47]} 31. g4 {[%emt 0:00:39]} R8e4 {[%emt 0:02:22]} 32. g5 {[%emt 0:01:36]} Rf4 {[%emt 0:00:23]} 33. Kd1 {[%emt 0:01:31]} Re3 {[%emt 0:00:10]} 34. Nd2 {[%emt 0:00:21]} Rxf1+ {[%emt 0:00:09]} 35. Nxf1 {[%emt 0:00:19]} Re4 {[%emt 0:00:04]} 36. c3 {[%emt 0:00:12]} Rxh4 {[%emt 0:00:12]} 37. gxf6 {[%emt 0:00:23]} Kf7 {[%emt 0:00:30]} 38. Nd2 {[%emt 0:00:31]} Rf4 {[%emt 0:00:14]} 39. Ke2 {[%emt 0:00:08]} Kxf6 {[%emt 0:00:08]} 40. Ke3 {[%emt 0:00:15]} Rh4 {[%emt 0:00:20]} 41. Nf3 {[%emt 0:30:53]} Re4+ {[%emt 0:30:05]} 42. Kf2 {[%emt 0:00:18]} Kf5 {[%emt 0:00:04]} 43. Ne1 {[%emt 0:00:36]} Rxe1 {[%emt 0:00:22]} 44. Kxe1 {[%emt 0:00:08]} Ke4 {[%emt 0:00:02]} 45. Ke2 {[%emt 0:00:20]} b6 {[%emt 0:00:40]} 46. a3 {[%emt 0:00:51]} b5 {[%emt 0:00:25]} 47. b3 {[%emt 0:00:26]} a5 {[%emt 0:00:14]} 48. a4 {[%emt 0:00:33]} bxa4 {[%emt 0:00:06]} 49. bxa4 {[%emt 0:00:12]} g5 {[%emt 0:00:03]} 0-1

[Event "55th Rubinstein Memorial-C 2019"]
[Site "Polanica-Zdroj"]
[Date "2019.08.22"]
[Round "6.30"]
[White "Wolska, Marta"]
[Black "Topola, Rafal"]
[Result "0-1"]
[ECO "D35"]
[WhiteElo "1516"]
[BlackElo "1660"]
[Annotator "NA"]
[PlyCount "60"]
[EventDate "2019.08.17"]
[EventType "swiss"]
[EventCountry "POL"]
[SourceTitle "playchess.com"]
[Source "ChessBase"]
[SourceQuality "1"]
[TimeControl "40/5400+30:1800+30"]

1. d4 d5 2. c4 e6 3. Nc3 Nf6 4. cxd5 exd5 5. Bg5 Be7 6. e3 c6 7. Qc2 h6 8. Bxf6 Bxf6 9. Bd3 Be6 10. Nf3 Nd7 11. b4 O-O 12. O-O Qe7 13. Rab1 Rfc8 14. Rfc1 Qf8 15. a4 Be7 16. Qb3 Nf6 17. a5 b6 18. axb6 axb6 19. Na4 Nd7 20. Nd2 c5 21. Bb5 c4 22. Qc3 Qd8 23. f3 Nb8 24. e4 Na6 25. Re1 Bf6 26. e5 Be7 27. f4 Nc7 28. Bc6 Ra6 29. Nb2 Rb8 30. b5 Ra3 0-1

[Event "55th Rubinstein Memorial-C 2019"]
[Site "Polanica-Zdroj"]
[Date "2019.08.22"]
[Round "6.31"]
[White "Arciszewska, Zuzanna"]
[Black "Stoop, Jan"]
[Result "1/2-1/2"]
[ECO "A43"]
[WhiteElo "1499"]
[BlackElo "1654"]
[Annotator "NA"]
[PlyCount "93"]
[EventDate "2019.08.17"]
[EventType "swiss"]
[EventCountry "POL"]
[SourceTitle "playchess.com"]
[Source "ChessBase"]
[SourceQuality "1"]
[TimeControl "40/5400+30:1800+30"]

1. d4 {[%emt 0:00:00]} c5 {[%emt 0:00:00]} 2. Nf3 {[%emt 0:00:53]} e6 {[%emt 0:00:00]} 3. c4 {[%emt 0:02:45]} d5 {[%emt 0:00:01]} 4. dxc5 {[%emt 0:03:29]} Bxc5 {[%emt 0:00:14]} 5. cxd5 {[%emt 0:04:04]} exd5 {[%emt 0:00:08]} 6. e3 {[%emt 0:02:39]} Nf6 {[%emt 0:00:18]} 7. Bd3 {[%emt 0:03:10]} Nc6 {[%emt 0:02:59]} 8. O-O {[%emt 0:01:18]} O-O {[%emt 0:00:05]} 9. b3 {[%emt 0:00:56]} Nb4 {[%emt 0:01:47]} 10. Bb2 {[%emt 0:01:45]} Nxd3 {[%emt 0:00:23]} 11. Qxd3 {[%emt 0:00:02]} Be6 {[%emt 0:09:51]} 12. Ng5 {[%emt 0:04:46]} g6 {[%emt 0:02:22]} 13. Qc3 {[%emt 0:01:44]} Be7 {[%emt 0:00:13]} 14. Nd2 {[%emt 0:00:17]} Rc8 {[%emt 0:00:13]} 15. Qe5 {[%emt 0:00:54]} Qc7 {[%emt 0:03:45]} 16. Nxe6 {[%emt 0:03:20]} Qxe5 {[%emt 0:00:40]} 17. Bxe5 {[%emt 0:00:02]} fxe6 18. Rac1 {[%emt 0:00:27]} Ng4 {[%emt 0:01:36]} 19. Bc7 {[%emt 0:08:39]} Ba3 {[%emt 0:10:36]} 20. Rc2 {[%emt 0:03:04]} Rf7 {[%emt 0:00:12]} 21. h3 {[%emt 0:00:43]} Nf6 {[%emt 0:03:41]} 22. Nf3 {[%emt 0:00:19]} Rfxc7 {[%emt 0:00:17]} 23. Rxc7 {[%emt 0:00:17]} Rxc7 {[%emt 0:00:03]} 24. Nd4 {[%emt 0:00:11]} Re7 {[%emt 0:03:13]} 25. Nb5 {[%emt 0:00:48]} Bc5 {[%emt 0:01:02]} 26. Rc1 {[%emt 0:00:15]} Nd7 {[%emt 0:03:30]} 27. b4 {[%emt 0:01:01]} Bxb4 {[%emt 0:00:46]} 28. Rc7 {[%emt 0:00:09]} a6 {[%emt 0:03:39]} 29. Nd4 {[%emt 0:00:18]} b5 {[%emt 0:04:52]} 30. Nc6 {[%emt 0:00:13]} Rf7 {[%emt 0:02:58]} 31. Nxb4 {[%emt 0:00:09]} a5 {[%emt 0:01:25]} 32. Nc6 {[%emt 0:00:26]} Nb6 {[%emt 0:03:26]} 33. Rxf7 {[%emt 0:01:05]} Kxf7 {[%emt 0:00:01]} 34. Nxa5 {[%emt 0:00:29]} Nc4 {[%emt 0:02:41]} 35. Nb3 {[%emt 0:00:57]} e5 {[%emt 0:00:54]} 36. Kf1 {[%emt 0:00:41]} Ke6 {[%emt 0:00:59]} 37. Ke2 {[%emt 0:00:47]} Kd6 {[%emt 0:01:04]} 38. Kd3 {[%emt 0:00:59]} Nb2+ 39. Kc2 Nc4 40. Kc3 Kc6 {[%emt 0:09:47]} 41. Nc1 {[%emt 0:31:57]} Nb6 {[%emt 0:35:01]} 42. Nd3 {[%emt 0:00:36]} Nc4 {[%emt 0:01:52]} 43. Nb4+ {[%emt 0:01:16]} Kd6 {[%emt 0:01:39]} 44. Nd3 {[%emt 0:00:18]} Kc6 {[%emt 0:00:24]} 45. Nb4+ {[%emt 0:01:58]} Kd6 {[%emt 0:02:34]} 46. Nd3 {[%emt 0:02:41]} Kc6 {[%emt 0:01:13]} 47. Nb4+ {[%emt 0:01:54]} 1/2-1/2

[Event "55th Rubinstein Memorial-C 2019"]
[Site "Polanica-Zdroj"]
[Date "2019.08.22"]
[Round "6.32"]
[White "Budzisz, Adrian"]
[Black "Zimny, Jakub"]
[Result "1-0"]
[ECO "B51"]
[WhiteElo "1631"]
[BlackElo "1492"]
[Annotator "NA"]
[PlyCount "49"]
[EventDate "2019.08.17"]
[EventType "swiss"]
[EventCountry "POL"]
[SourceTitle "playchess.com"]
[Source "ChessBase"]
[SourceQuality "1"]
[TimeControl "40/5400+30:1800+30"]

1. e4 {[%emt 0:00:00]} c5 {[%emt 0:00:00]} 2. Nf3 {[%emt 0:00:00]} d6 {[%emt 0:00:00]} 3. Bb5+ {[%emt 0:00:00]} Nd7 {[%emt 0:00:10]} 4. Ba4 {[%emt 0:00:04]} Ngf6 {[%emt 0:00:46]} 5. O-O {[%emt 0:00:49]} a6 {[%emt 0:02:34]} 6. c4 {[%emt 0:01:22]} g6 {[%emt 0:03:02]} 7. Nc3 {[%emt 0:00:24]} Bg7 {[%emt 0:00:21]} 8. d3 {[%emt 0:00:11]} O-O {[%emt 0:01:36]} 9. h3 {[%emt 0:00:10]} Nb6 {[%emt 0:08:40]} 10. Bb3 {[%emt 0:00:36]} Bd7 {[%emt 0:00:40]} 11. Nh2 {[%emt 0:04:35]} Nc8 {[%emt 0:06:16]} 12. f4 {[%emt 0:05:43]} b5 {[%emt 0:04:11]} 13. cxb5 {[%emt 0:02:42]} axb5 {[%emt 0:00:13]} 14. g4 {[%emt 0:00:05]} b4 {[%emt 0:00:32]} 15. Ne2 {[%emt 0:01:12]} Ne8 {[%emt 0:02:03]} 16. f5 {[%emt 0:03:30]} Qb6 {[%emt 0:02:00]} 17. Kh1 {[%emt 0:03:37]} Kh8 {[%emt 0:06:36]} 18. Nf4 {[%emt 0:01:09]} Nc7 {[%emt 0:01:36]} 19. g5 {[%emt 0:02:22]} gxf5 {[%emt 0:02:24]} 20. Qh5 {[%emt 0:03:15]} Be8 {[%emt 0:00:58]} 21. exf5 {[%emt 0:03:08]} Qc6+ {[%emt 0:01:44]} 22. Nf3 {[%emt 0:02:54]} d5 {[%emt 0:01:08]} 23. Nh4 {[%emt 0:05:47]} h6 {[%emt 0:10:23]} 24. Nfg2 {[%emt 0:02:36]} Ra6 {[%emt 0:04:54]} 25. f6 {[%emt 0:00:22]} 1-0

[Event "55th Rubinstein Memorial-C 2019"]
[Site "Polanica-Zdroj"]
[Date "2019.08.23"]
[Round "7.1"]
[White "Sroka, Janusz"]
[Black "Janzer, Hubert"]
[Result "0-1"]
[ECO "C05"]
[WhiteElo "1875"]
[BlackElo "1803"]
[Annotator "NA"]
[PlyCount "60"]
[EventDate "2019.08.17"]
[EventType "swiss"]
[EventCountry "POL"]
[SourceTitle "playchess.com"]
[Source "ChessBase"]
[SourceQuality "1"]
[TimeControl "40/5400+30:1800+30"]

1. e4 {[%emt 0:00:00]} e6 {[%emt 0:00:00]} 2. d4 {[%emt 0:00:00]} d5 {[%emt 0:00:00]} 3. Nd2 {[%emt 0:00:14]} Nf6 {[%emt 0:00:06]} 4. e5 {[%emt 0:00:07]} Nfd7 {[%emt 0:00:06]} 5. c3 {[%emt 0:00:15]} c5 {[%emt 0:00:33]} 6. f4 {[%emt 0:00:07]} Nc6 {[%emt 0:01:06]} 7. Ndf3 {[%emt 0:00:06]} cxd4 {[%emt 0:05:10]} 8. cxd4 {[%emt 0:00:03]} Qb6 {[%emt 0:06:06]} 9. Ne2 {[%emt 0:00:23]} f6 {[%emt 0:05:08]} 10. Nc3 {[%emt 0:02:24]} a6 {[%emt 0:03:50]} 11. Bd3 {[%emt 0:07:24]} Be7 {[%emt 0:06:21]} 12. a3 {[%emt 0:05:14]} O-O {[%emt 0:09:54]} 13. Qe2 {[%emt 0:24:35]} fxe5 {[%emt 0:03:59]} 14. dxe5 {[%emt 0:04:11]} Nc5 {[%emt 0:02:08]} 15. Bc2 {[%emt 0:07:13]} d4 {[%emt 0:09:55]} 16. Ne4 {[%emt 0:03:49]} Nb3 {[%emt 0:00:53]} 17. Neg5 {[%emt 0:31:35]} h6 {[%emt 0:25:16]} 18. Bh7+ {[%emt 0:09:51]} Kh8 {[%emt 0:00:10]} 19. Nh4 {[%emt 0:00:12]} Bxg5 {[%emt 0:00:29]} 20. Ng6+ {[%emt 0:00:49]} Kxh7 {[%emt 0:00:07]} 21. Nxf8+ {[%emt 0:00:13]} Kg8 {[%emt 0:00:08]} 22. fxg5 {[%emt 0:00:57]} Qa5+ {[%emt 0:02:09]} 23. Kd1 {[%emt 0:00:46]} Nxa1 {[%emt 0:09:37]} 24. gxh6 {[%emt 0:00:32]} Qa4+ {[%emt 0:00:47]} 25. Ke1 {[%emt 0:00:38]} Qc2 {[%emt 0:00:37]} 26. h7+ {[%emt 0:00:47]} Kh8 {[%emt 0:00:07]} 27. Qh5 {[%emt 0:00:22]} Qxc1+ {[%emt 0:00:30]} 28. Ke2 {[%emt 0:00:18]} Qe3+ {[%emt 0:00:18]} 29. Kd1 {[%emt 0:00:54]} Qd3+ {[%emt 0:00:09]} 30. Ke1 {[%emt 0:00:04]} Nc2+ {[%emt 0:00:06]} 0-1

[Event "55th Rubinstein Memorial-C 2019"]
[Site "Polanica-Zdroj"]
[Date "2019.08.23"]
[Round "7.2"]
[White "Majek, Kacper"]
[Black "Witkowski, Krzysztof"]
[Result "1/2-1/2"]
[ECO "B30"]
[WhiteElo "1984"]
[BlackElo "1707"]
[Annotator "NA"]
[PlyCount "120"]
[EventDate "2019.08.17"]
[EventType "swiss"]
[EventCountry "POL"]
[SourceTitle "playchess.com"]
[Source "ChessBase"]
[SourceQuality "1"]
[TimeControl "40/5400+30:1800+30"]

1. e4 {[%emt 0:00:27]} c5 {[%emt 0:00:00]} 2. Nf3 {[%emt 0:00:04]} Nc6 {[%emt 0:00:00]} 3. d3 {[%emt 0:00:39]} g6 {[%emt 0:03:24]} 4. g3 {[%emt 0:00:06]} Bg7 {[%emt 0:00:07]} 5. Bg2 {[%emt 0:00:06]} e6 {[%emt 0:00:26]} 6. O-O {[%emt 0:00:49]} Nge7 {[%emt 0:00:21]} 7. c3 {[%emt 0:00:25]} d5 {[%emt 0:00:27]} 8. Qe2 {[%emt 0:00:29]} Qc7 {[%emt 0:12:21]} 9. Bf4 {[%emt 0:05:55]} e5 {[%emt 0:08:12]} 10. exd5 {[%emt 0:00:46]} exf4 {[%emt 0:01:04]} 11. dxc6 {[%emt 0:00:07]} fxg3 {[%emt 0:02:17]} 12. fxg3 {[%emt 0:00:35]} O-O {[%emt 0:03:43]} 13. cxb7 {[%emt 0:00:39]} Bxb7 {[%emt 0:00:08]} 14. Nbd2 {[%emt 0:00:31]} Rae8 {[%emt 0:02:01]} 15. Nc4 {[%emt 0:00:32]} Nf5 {[%emt 0:03:13]} 16. Qf2 {[%emt 0:05:30]} Nd6 {[%emt 0:04:49]} 17. Nxd6 {[%emt 0:08:14]} Qxd6 {[%emt 0:00:16]} 18. Rae1 {[%emt 0:00:41]} Bxf3 {[%emt 0:08:25]} 19. Qxf3 {[%emt 0:01:23]} Be5 {[%emt 0:01:31]} 20. Re2 {[%emt 0:01:20]} Kg7 {[%emt 0:04:50]} 21. Kh1 {[%emt 0:00:54]} f6 {[%emt 0:00:39]} 22. Rd1 {[%emt 0:01:45]} Qa6 {[%emt 0:04:58]} 23. Red2 {[%emt 0:04:12]} Qxa2 {[%emt 0:06:10]} 24. d4 {[%emt 0:07:26]} cxd4 {[%emt 0:01:52]} 25. cxd4 {[%emt 0:00:01]} Bd6 {[%emt 0:02:46]} 26. Qc6 {[%emt 0:00:02]} Qe6 {[%emt 0:04:29]} 27. Bd5 {[%emt 0:05:59]} Qe7 {[%emt 0:01:26]} 28. Qa6 {[%emt 0:00:28]} Bb4 {[%emt 0:07:53]} 29. Rc2 {[%emt 0:02:49]} Rd8 {[%emt 0:04:07]} 30. Bg2 {[%emt 0:01:00]} Rd6 {[%emt 0:01:13]} 31. Qc4 {[%emt 0:00:08]} a5 {[%emt 0:01:26]} 32. Re2 {[%emt 0:00:35]} Qd7 {[%emt 0:01:03]} 33. d5 {[%emt 0:00:19]} Rf7 {[%emt 0:02:17]} 34. Qh4 {[%emt 0:00:53]} Re7 {[%emt 0:03:53]} 35. Rc2 {[%emt 0:04:43]} Re1+ {[%emt 0:01:33]} 36. Rxe1 {[%emt 0:00:01]} Bxe1 {[%emt 0:00:07]} 37. Bh3 {[%emt 0:00:45]} Qe7 {[%emt 0:00:56]} 38. Qc4 {[%emt 0:01:58]} Bb4 {[%emt 0:00:28]} 39. Be6 {[%emt 0:00:21]} Rd8 {[%emt 0:03:16]} 40. Qb5 {[%emt 0:00:46]} Kf8 {[%emt 0:01:09]} 41. Rc6 {[%emt 0:30:59]} Qa7 {[%emt 0:30:28]} 42. Rb6 {[%emt 0:00:51]} Qc7 {[%emt 0:00:25]} 43. Bh3 {[%emt 0:19:31]} Qc1+ {[%emt 0:00:23]} 44. Bf1 {[%emt 0:00:01]} Qd1 {[%emt 0:00:32]} 45. Rxf6+ {[%emt 0:03:56]} Kg7 {[%emt 0:00:14]} 46. Qa6 {[%emt 0:03:03]} Qxd5+ {[%emt 0:00:31]} 47. Bg2 {[%emt 0:00:01]} Qd1+ {[%emt 0:00:28]} 48. Rf1 {[%emt 0:00:01]} Qd6 {[%emt 0:00:34]} 49. Qe2 {[%emt 0:02:40]} Rf8 {[%emt 0:00:44]} 50. Rc1 {[%emt 0:00:57]} Rf7 {[%emt 0:00:31]} 51. Rc6 {[%emt 0:07:40]} Re7 {[%emt 0:00:23]} 52. Qf2 {[%emt 0:06:15]} Re1+ {[%emt 0:00:31]} 53. Qxe1 {[%emt 0:00:14]} Qxc6 {[%emt 0:00:24]} 54. Qe3 {[%emt 0:02:16]} Qf6 {[%emt 0:00:34]} 55. Qe2 {[%emt 0:01:16]} Qe7 {[%emt 0:00:17]} 56. Be4 {[%emt 0:00:08]} Qc5 {[%emt 0:00:39]} 57. Kg2 {[%emt 0:00:25]} Qg5 {[%emt 0:00:40]} 58. Qc4 {[%emt 0:01:03]} Qd2+ {[%emt 0:00:22]} 59. Kh3 {[%emt 0:00:11]} Qh6+ {[%emt 0:00:12]} 60. Kg2 {[%emt 0:00:24]} Qd2+ {[%emt 0:00:05]} 1/2-1/2